bitfinex-derivatives/quotes_ETHF0:USTF0_20240920
["timestamp","ask_amount","ask_price","bid_price","bid_amount"]
[1726808103910,3.2078,2538.3,2538.1,0.39392]
[1726808104823,0.4146,2538.2,2538.1,0.39393]
[1726808105021,0.4146,2538.2,2538.0,0.77334]
[1726808105319,0.4146,2538.2,2538.1,0.39393]
[1726808105825,0.4146,2538.2,2538.1,4.33393]
[1726808106324,0.4146,2538.2,2538.0,0.3794]
[1726808107026,0.4146,2538.2,2537.9,0.39395]
[1726808107225,0.4146,2538.2,2538.0,0.39394]
[1726808107524,0.78916,2538.6,2537.8,0.17957663]
[1726808107525,0.3953,2538.6,2538.1,3.07]
[1726808107714,4.121,2538.8,2538.5,0.39386]
[1726808107911,0.4112,2538.9,2538.2,4.4054]
[1726808108123,0.4112,2538.9,2538.5,0.39386]
[1726808108425,0.4112,2538.9,2538.4,0.39388]
[1726808108925,0.4112,2538.9,2538.5,0.39387]
[1726808110120,0.4112,2538.9,2538.6,0.39384]
[1726808110320,0.4112,2538.9,2538.5,0.39386]
[1726808110518,3.2078,2538.6,2538.5,0.39386]
[1726808111724,3.2078,2538.6,2538.2,4.5818917]
[1726808111920,3.2078,2538.6,2538.3,0.39389]
[1726808112120,0.3911,2538.5,2538.3,0.39389]
[1726808112528,0.3911,2538.5,2537.9,3.2078]
[1726808112726,0.3911,2538.5,2538.1,0.39393]
[1726808112727,3.8842,2538.4,2538.1,0.39393]
[1726808112920,3.8842,2538.4,2537.9,3.991]
[1726808113226,0.8142,2538.4,2538.1,0.39392]
[1726808113623,0.3911,2538.5,2538.3,0.3939]
[1726808113923,3.2078,2538.6,2537.9,3.991]
[1726808113924,3.2078,2538.6,2538.2,3.07]
[1726808114120,3.2078,2538.6,2538.4,0.39387]
[1726808114622,3.2078,2538.6,2538.4,0.78617]
[1726808114827,3.2078,2538.6,2538.4,0.3923]
[1726808115228,3.2078,2538.6,2538.4,0.78618]
[1726808115530,4.121,2538.9,2538.6,0.39384]
[1726808115834,0.4111,2538.9,2538.6,0.39385]
[1726808116825,0.4111,2538.9,2538.4,0.3923]
[1726808116826,0.4111,2538.9,2538.4,0.78618]
[1726808117025,0.4111,2538.9,2538.4,0.3923]
[1726808117026,3.07,2538.7,2538.4,0.3923]
[1726808117237,0.4169,2538.6,2538.4,0.3923]
[1726808117728,0.4111,2538.5,2538.4,0.3923]
[1726808118335,0.4111,2538.5,2538.4,0.78618]
[1726808119228,3.2078,2539.0,2538.4,4.3315]
[1726808119429,0.7939,2538.9,2538.7,0.39383]
[1726808119629,0.7939,2538.9,2538.4,3.4623]
[1726808119936,0.7939,2538.9,2538.7,0.39383]
[1726808120233,3.60152,2539.5,2538.9,0.3938]
[1726808120419,0.3811,2539.2,2538.8,0.39382]
[1726808120620,3.5889,2539.2,2538.6,0.4057]
[1726808120826,3.5889,2539.2,2538.7,0.39383]
[1726808121130,3.5889,2539.2,2538.8,0.39381]
[1726808121726,3.5889,2539.2,2538.8,0.39382]
[1726808121927,3.07,2539.1,2538.8,0.39382]
[1726808123624,3.07,2539.1,2538.6,1.39864255]
[1726808123822,3.07,2539.1,2538.7,0.49856456]
[1726808124031,3.07,2539.1,2538.8,0.39381]
[1726808124733,3.07,2539.1,2538.7,0.4116]
[1726808125032,3.07,2539.1,2538.8,0.89230978]
[1726808125232,3.07,2539.1,2538.8,0.39381]
[1726808125635,3.07,2539.1,2538.4,1.55921772]
[1726808125835,3.07,2538.9,2538.6,0.39385]
[1726808126031,3.07,2538.7,2538.4,0.3923]
[1726808126231,0.3773,2538.6,2538.4,0.3923]
[1726808126429,0.3773,2538.6,2538.4,0.78618]
[1726808126931,0.3773,2538.6,2538.4,0.39388]
[1726808127133,0.3773,2538.6,2538.1,1.58157437]
[1726808127436,3.5851,2538.6,2538.2,0.89286582]
[1726808127638,3.5851,2538.6,2538.3,0.89282837]
[1726808127933,3.5851,2538.6,2538.1,0.58863182]
[1726808128235,3.5851,2538.6,2538.3,0.39389]
[1726808128433,3.5851,2538.6,2538.4,0.89272526]
[1726808128639,3.5851,2538.6,2538.4,0.39388]
[1726808129138,3.5851,2538.6,2538.3,0.39389]
[1726808129336,3.5851,2538.6,2538.4,0.49881632]
[1726808129533,0.3811,2538.5,2538.1,0.80502]
[1726808129840,0.3811,2538.5,2538.2,0.49884572]
[1726808130033,0.3845,2538.4,2538.1,0.80503]
[1726808130337,3.2078,2538.6,2538.3,0.3939]
[1726808130532,3.2078,2538.6,2538.1,0.4111]
[1726808130834,0.3845,2538.5,2538.3,0.39389]
[1726808131135,0.3845,2538.5,2538.4,0.49885084]
[1726808131635,0.3845,2538.5,2538.3,0.39389]
[1726808131836,0.3845,2538.5,2538.4,0.49884271]
[1726808132530,0.7848,2538.5,2538.2,1.38685255]
[1726808132725,0.7848,2538.5,2538.2,0.39391]
[1726808132927,0.7848,2538.5,2538.3,0.49885134]
[1726808133126,0.7848,2538.5,2538.1,1.40404255]
[1726808133127,1.1622,2538.5,2538.1,0.4111]
[1726808133443,1.1622,2538.5,2538.2,0.49887391]
[1726808133734,1.1622,2538.5,2538.1,0.80503]
[1726808133936,1.1622,2538.5,2538.2,0.89265874]
[1726808134129,1.1622,2538.5,2538.2,0.39392]
[1726808134634,1.1622,2538.5,2538.3,0.3939]
[1726808134839,1.1622,2538.5,2538.1,1.40404255]
[1726808134840,1.1622,2538.5,2538.2,0.39391]
[1726808135635,1.1622,2538.5,2538.4,0.39388]
[1726808135839,0.7848,2538.5,2538.4,0.39388]
[1726808136129,0.7848,2538.5,2538.4,0.89268011]
[1726808136331,0.7848,2538.5,2538.4,0.49880011]
[1726808136535,0.7848,2538.5,2538.4,0.89268011]
[1726808136740,0.7848,2538.5,2538.4,0.49880011]
[1726808137034,3.2078,2539.2,2538.4,14.50094266]
[1726808137225,0.3941,2539.0,2538.7,0.99294255]
[1726808137429,0.3941,2539.0,2538.9,0.39381]
[1726808137628,0.3941,2539.0,2538.9,0.89261011]
[1726808138332,0.3941,2539.0,2538.9,0.89248733]
[1726808138532,0.3941,2539.0,2538.9,0.49867733]
[1726808138937,0.3941,2539.0,2538.7,1.38677255]
[1726808139133,0.3941,2539.0,2538.8,0.49857117]
[1726808139438,0.3941,2539.0,2538.6,2.48235638]
[1726808139634,0.3941,2539.0,2538.7,0.49861684]
[1726808139826,0.3941,2539.0,2538.8,0.49861684]
[1726808140136,0.3941,2539.0,2538.5,3.8451]
[1726808140137,0.3941,2539.0,2538.7,0.39384]
[1726808142430,0.3941,2539.0,2538.8,0.8926857]
[1726808142639,0.3941,2539.0,2538.8,0.39382]
[1726808143040,0.3941,2539.0,2538.7,0.39383]
[1726808143240,0.3941,2539.0,2538.8,0.49886461]
[1726808143444,0.3941,2539.0,2538.7,0.39383]
[1726808143633,0.3941,2539.0,2538.8,0.49887679]
[1726808143834,0.3941,2539.0,2538.7,0.39383]
[1726808144034,0.3941,2539.0,2538.8,0.49887871]
[1726808144239,0.3941,2539.0,2538.8,0.39382]
[1726808144742,4.121,2539.4,2538.9,10.2162]
[1726808145036,4.121,2539.4,2539.3,0.39375]
[1726808145235,1.1903,2539.6,2539.4,0.39372]
[1726808145738,1.1903,2539.6,2539.1,3.07]
[1726808146044,1.1903,2539.6,2539.4,0.39372]
[1726808149334,4.121,2540.0,2539.3,6.2778]
[1726808149536,0.4023,2539.8,2539.5,0.3937]
[1726808149840,0.4023,2539.8,2539.6,0.3937]
[1726808150335,0.4023,2539.8,2539.5,0.3937]
[1726808150938,0.4023,2539.8,2539.3,7.67864255]
[1726808151141,0.3957,2539.9,2539.5,3.07]
[1726808151342,0.3957,2539.9,2539.8,0.39367]
[1726808151837,0.3957,2539.9,2539.7,0.39367]
[1726808152238,0.3957,2539.9,2539.7,0.39368]
[1726808153542,0.3957,2539.9,2539.8,0.39367]
[1726808154647,0.3957,2539.9,2539.5,3.07]
[1726808154648,7.4033,2539.9,2539.5,0.3937]
[1726808154941,0.3777,2539.8,2539.5,0.3937]
[1726808155149,0.3777,2539.8,2539.4,0.39372]
[1726808155150,0.3839,2539.7,2539.4,0.39372]
[1726808155448,0.3839,2539.7,2539.3,4.17713034]
[1726808155640,0.3839,2539.7,2539.5,0.39371]
[1726808156647,0.3839,2539.7,2539.6,0.3937]
[1726808156842,0.3839,2539.7,2539.3,4.17713034]
[1726808157044,0.3839,2539.7,2539.6,0.3937]
[1726808157235,0.3839,2539.7,2539.3,7.24713034]
[1726808157439,0.3839,2539.7,2539.5,0.39371]
[1726808158547,0.3839,2539.7,2539.4,0.39372]
[1726808159145,0.3839,2539.7,2539.3,7.0683]
[1726808159146,0.3839,2539.7,2539.5,0.39371]
[1726808160348,0.3839,2539.7,2539.4,0.39372]
[1726808160951,0.3839,2539.7,2539.1,3.8457]
[1726808161142,3.07,2539.5,2538.8,0.4164]
[1726808161446,0.4039,2539.4,2538.9,0.3938]
[1726808161657,0.4063,2539.3,2538.9,0.3938]
[1726808162251,0.4063,2539.3,2538.8,0.4164]
[1726808162252,0.3798,2539.2,2539.0,0.39378]
[1726808162555,0.3798,2539.2,2539.0,0.39379]
[1726808162858,0.3798,2539.2,2539.1,0.39378]
[1726808163051,0.4039,2539.4,2539.1,3.07]
[1726808163352,0.4039,2539.4,2539.2,0.39375]
[1726808163538,0.4039,2539.4,2539.3,0.39375]
[1726808164648,0.4039,2539.4,2539.2,1.18845]
[1726808164849,0.4039,2539.4,2539.3,0.39375]
[1726808165153,0.4039,2539.4,2539.2,1.18845]
[1726808165446,0.4039,2539.4,2539.1,3.46377]
[1726808165654,0.4039,2539.4,2539.2,0.39376]
[1726808166454,0.4039,2539.4,2539.3,0.39375]
[1726808167652,3.2078,2539.6,2539.3,3.07]
[1726808167854,4.121,2539.8,2539.7,0.39368]
[1726808167855,4.5045,2539.8,2539.7,0.39368]
[1726808168050,0.3835,2539.8,2539.6,0.39369]
[1726808170143,0.3835,2539.8,2539.5,0.7819]
[1726808170950,0.3835,2539.8,2539.6,0.3937]
[1726808171146,0.3835,2539.8,2539.5,0.78191]
[1726808171748,0.3835,2539.8,2539.4,3.07]
[1726808171958,0.3835,2539.8,2539.4,3.46372]
[1726808173261,0.3835,2539.8,2539.5,0.39371]
[1726808173456,0.3835,2539.8,2539.4,3.46372]
[1726808174666,3.07,2539.7,2539.0,3.4645]
[1726808174855,3.07,2539.5,2538.9,3.6128]
[1726808175162,3.46372,2539.5,2538.9,0.405]
[1726808175353,0.4054,2539.4,2538.9,0.405]
[1726808175553,0.4054,2539.4,2538.9,0.7988]
[1726808175754,0.4054,2539.4,2539.0,3.07]
[1726808176155,0.4054,2539.4,2539.1,0.39377]
[1726808176551,0.4054,2539.4,2539.2,3.07]
[1726808176757,0.7883,2539.6,2539.2,3.07]
[1726808176758,0.4054,2539.6,2539.2,3.07]
[1726808176959,0.4182,2539.7,2539.4,3.07]
[1726808177163,0.4182,2539.7,2539.5,0.3937]
[1726808177468,0.4182,2539.7,2539.6,0.3937]
[1726808177764,0.4182,2539.7,2539.5,0.39371]
[1726808178158,0.4182,2539.7,2539.4,3.4825]
[1726808178365,0.4182,2539.7,2539.5,0.39371]
[1726808178666,0.4182,2539.7,2539.4,0.4125]
[1726808178863,0.4182,2539.7,2539.4,0.39372]
[1726808179168,0.81189,2539.7,2539.2,0.39376]
[1726808179359,0.81189,2539.7,2539.1,0.3807]
[1726808179553,4.01969,2539.7,2539.1,0.39377]
[1726808179864,4.01969,2539.7,2539.0,0.39379]
[1726808179865,3.4637,2539.6,2539.0,0.39379]
[1726808180254,3.07,2539.6,2539.1,0.39377]
[1726808180465,4.01969,2539.7,2539.1,0.39377]
[1726808180656,3.626,2539.7,2538.9,1.2047]
[1726808181164,0.39371,2539.6,2539.0,0.39379]
[1726808181361,3.46376,2539.3,2538.5,4.20074255]
[1726808181561,1.1777,2539.2,2538.8,3.46381]
[1726808181864,1.1777,2539.2,2538.8,3.46382]
[1726808182058,1.1777,2539.2,2538.8,3.07]
[1726808182461,1.1777,2539.2,2538.7,0.39383]
[1726808182662,1.1777,2539.2,2538.8,0.39382]
[1726808183171,1.1777,2539.2,2538.8,3.46382]
[1726808183760,1.1777,2539.2,2538.9,0.39381]
[1726808183954,1.1777,2539.2,2538.8,3.07]
[1726808184760,4.2477,2539.2,2538.6,2.16589255]
[1726808184966,4.2477,2539.2,2538.7,0.49888317]
[1726808185165,1.1777,2539.2,2538.6,3.8491]
[1726808185373,1.1777,2539.2,2538.7,0.89265112]
[1726808185569,1.1777,2539.2,2538.7,0.39384]
[1726808185761,1.1777,2539.2,2538.8,0.89262285]
[1726808185964,1.1777,2539.2,2538.8,0.39382]
[1726808186468,1.1777,2539.2,2538.9,0.39381]
[1726808186672,1.1777,2539.2,2538.8,0.39381]
[1726808187761,1.1777,2539.2,2538.9,0.39381]
[1726808188464,1.1777,2539.2,2538.8,0.39382]
[1726808188867,1.1777,2539.2,2538.7,3.46383]
[1726808189269,1.1777,2539.2,2538.8,0.39382]
[1726808189470,1.1777,2539.2,2538.7,3.46383]
[1726808190172,1.1777,2539.2,2538.8,0.39382]
[1726808191665,1.1777,2539.2,2539.0,0.39379]
[1726808191972,0.7709,2539.2,2539.1,0.39378]
[1726808192272,0.3786,2539.2,2539.1,0.4007]
[1726808192569,0.3786,2539.2,2539.1,0.79448]
[1726808192770,0.3786,2539.2,2539.1,0.4007]
[1726808193170,3.2078,2539.4,2539.1,0.4007]
[1726808193360,3.2078,2539.8,2539.3,3.07]
[1726808193565,3.2078,2539.8,2539.6,3.07]
[1726808193771,3.2078,2539.8,2539.6,3.46369]
[1726808194475,3.2078,2539.8,2539.5,0.39371]
[1726808194673,0.4064,2539.7,2539.5,0.39371]
[1726808195269,1.1816,2539.7,2539.5,0.39371]
[1726808196276,1.1816,2539.7,2539.4,3.46372]
[1726808196466,1.1816,2539.7,2539.5,0.39371]
[1726808196975,1.1816,2539.7,2538.9,0.98449]
[1726808196976,6.2778,2539.6,2538.6,0.99294255]
[1726808197166,3.2078,2538.7,2538.6,0.99294255]
[1726808197562,6.2778,2538.7,2538.6,0.99294255]
[1726808197973,10.217,2538.7,2538.3,0.3774]
[1726808198168,3.2078,2538.7,2537.9,1.38684255]
[1726808198368,3.07,2538.4,2538.0,0.89305445]
[1726808198568,3.07,2538.4,2538.1,0.49912445]
[1726808198774,3.07,2538.4,2538.0,0.39393]
[1726808199069,3.07,2538.4,2538.1,0.49913482]
[1726808199269,3.07,2538.4,2537.9,1.78080255]
[1726808199270,3.07,2538.4,2538.0,0.39395]
[1726808199475,3.07,2538.1,2537.9,0.99294255]
[1726808200384,0.39,2538.3,2537.9,0.99294255]
[1726808200575,0.39,2538.3,2538.0,0.39394]
[1726808200768,0.39,2538.3,2538.0,0.7939]
[1726808200969,0.39,2538.3,2538.0,1.18783]
[1726808201474,0.39,2538.3,2538.0,1.18784]
[1726808201974,3.5904,2538.7,2538.0,4.7339]
[1726808202176,3.07,2538.6,2538.1,0.39392]
[1726808202971,3.07,2538.6,2538.2,0.39391]
[1726808203174,3.07,2538.6,2538.1,0.39393]
[1726808203375,3.07,2538.6,2538.2,0.39391]
[1726808203575,3.5904,2538.7,2538.1,3.07]
[1726808203870,3.5904,2538.7,2538.2,0.39391]
[1726808204375,3.5904,2538.7,2538.2,0.39392]
[1726808204564,3.2078,2538.7,2538.5,3.07]
[1726808204765,4.5319,2539.0,2538.5,3.07]
[1726808204969,4.5319,2539.0,2538.7,0.39384]
[1726808205275,0.4109,2539.0,2538.6,1.21025]
[1726808207263,0.4109,2539.0,2538.6,1.38639677]
[1726808208276,0.4109,2539.0,2538.6,0.8164]
[1726808208479,0.4109,2539.0,2538.6,0.4061]
[1726808208673,0.4109,2539.0,2538.4,0.39388]
[1726808208979,3.07,2538.9,2538.4,0.39388]
[1726808211273,3.07,2538.9,2538.5,0.39387]
[1726808212074,3.07,2538.9,2538.6,0.39385]
[1726808212484,3.07,2538.9,2538.5,0.39386]
[1726808213183,3.07,2538.9,2538.4,0.39388]
[1726808214085,3.2078,2540.6,2538.8,1.48941383]
[1726808214268,0.768,2540.5,2540.4,3.07]
[1726808214482,0.768,2540.5,2539.7,3.6226]
[1726808214677,0.768,2540.5,2540.4,3.07]
[1726808215077,0.3897,2541.0,2540.4,7.39957]
[1726808215274,0.3897,2541.0,2540.6,3.07]
[1726808215471,0.3897,2541.0,2540.6,3.46354]
[1726808215978,0.3897,2541.0,2540.6,0.39354]
[1726808216385,0.3897,2541.0,2540.5,0.39355]
[1726808216679,0.3897,2541.0,2540.6,0.39354]
[1726808216886,0.3897,2541.0,2540.4,3.78]
[1726808217083,0.3897,2541.0,2540.4,3.95919376]
[1726808217780,0.3897,2541.0,2540.7,0.39351]
[1726808217980,0.3897,2541.0,2540.6,0.39354]
[1726808218377,0.3897,2541.0,2540.7,0.39353]
[1726808218681,0.3897,2541.0,2540.6,0.39354]
[1726808218887,0.3897,2541.0,2540.7,0.39353]
[1726808219086,0.3783,2541.1,2540.6,3.2078]
[1726808219289,0.3783,2541.1,2540.7,3.78]
[1726808219488,3.2078,2541.2,2540.7,3.78]
[1726808219682,4.121,2541.5,2541.0,0.39347]
[1726808219876,4.121,2541.5,2541.2,0.39345]
[1726808220086,0.4082,2541.6,2541.0,3.78]
[1726808220281,0.4082,2541.6,2541.1,0.39346]
[1726808222093,0.4082,2541.6,2540.8,5.208]
[1726808222290,0.4082,2541.6,2540.9,0.39348]
[1726808222594,0.80159,2541.6,2540.8,0.3935]
[1726808222897,3.2078,2541.4,2540.8,0.39351]
[1726808223089,3.2078,2541.4,2540.7,3.78]
[1726808223282,3.60121,2541.5,2540.7,4.17352]
[1726808223486,0.39342,2541.4,2540.7,4.17352]
[1726808223683,3.60121,2541.5,2540.7,4.17352]
[1726808223883,0.39343,2541.4,2540.6,3.60134]
[1726808224085,3.616,2541.6,2540.6,0.39353]
[1726808224385,0.39341,2541.5,2540.8,0.39351]
[1726808224690,3.2078,2541.3,2540.9,0.39349]
[1726808224988,3.2078,2541.3,2540.7,3.78]
[1726808224989,3.2078,2541.3,2540.8,0.3935]
[1726808225189,3.2078,2541.3,2540.9,0.39349]
[1726808225384,0.80159,2541.6,2540.9,0.39349]
[1726808226496,3.2078,2541.4,2540.7,3.78]
[1726808226789,3.60123,2541.4,2540.7,4.17353]
[1726808227295,3.2078,2541.4,2540.7,3.78]
[1726808227485,3.2078,2541.4,2540.8,0.39351]
[1726808227692,0.39341,2541.5,2540.8,0.39351]
[1726808228498,3.2078,2541.4,2540.8,0.3935]
[1726808228688,3.2078,2541.4,2540.7,3.78]
[1726808228888,0.77164,2541.3,2540.7,4.17352]
[1726808229392,0.4029,2541.2,2540.7,4.17352]
[1726808230596,0.4029,2541.2,2540.8,0.39351]
[1726808230890,0.4029,2541.2,2540.9,3.2078]
[1726808231086,0.4029,2541.2,2540.9,3.60129]
[1726808231287,0.4029,2541.2,2541.0,0.39348]
[1726808231487,0.4029,2541.2,2540.9,3.2078]
[1726808231685,0.4029,2541.2,2540.9,3.60128]
[1726808231896,0.4029,2541.2,2540.9,3.2078]
[1726808232091,3.2078,2541.1,2540.6,3.2078]
[1726808232394,3.60127,2541.1,2540.6,3.2078]
[1726808233195,4.01217,2541.1,2540.6,3.2078]
[1726808233495,0.4029,2541.2,2540.6,3.2078]
[1726808233796,0.4029,2541.2,2540.9,0.39349]
[1726808233998,0.4029,2541.2,2541.0,0.39348]
[1726808234294,0.4029,2541.2,2541.1,0.39347]
[1726808234497,0.4029,2541.2,2541.0,0.39347]
[1726808235096,0.4029,2541.2,2540.9,0.39349]
[1726808235697,0.4029,2541.2,2541.0,0.39348]
[1726808237994,0.4029,2541.2,2541.0,3.46348]
[1726808238193,0.4029,2541.2,2541.0,3.07]
[1726808238392,3.6187,2541.5,2541.1,0.39346]
[1726808238594,4.0014,2541.5,2541.1,0.39347]
[1726808239099,3.5905,2541.5,2541.2,3.46344]
[1726808242105,3.5905,2541.5,2541.2,3.07]
[1726808242607,7.91911,2541.5,2541.0,3.46348]
[1726808242805,3.98391,2541.5,2541.0,3.46347]
[1726808242998,3.5905,2541.5,2541.2,3.07]
[1726808245100,3.5905,2541.5,2541.2,3.46345]
[1726808245408,3.5905,2541.5,2541.3,0.39343]
[1726808245704,3.5905,2541.5,2541.2,3.07]
[1726808246902,3.5905,2541.5,2541.1,0.39346]
[1726808247291,3.5905,2541.5,2541.0,3.07]
[1726808247491,3.5905,2541.5,2541.1,0.39346]
[1726808247895,3.98391,2541.5,2541.0,3.46348]
[1726808248109,3.5905,2541.5,2541.0,3.46348]
[1726808248310,3.98391,2541.5,2541.0,3.46348]
[1726808250210,3.5905,2541.5,2541.0,3.46348]
[1726808250508,3.98391,2541.5,2541.0,3.46347]
[1726808250906,3.98391,2541.5,2541.1,0.39347]
[1726808251903,3.5905,2541.5,2541.4,3.07]
[1726808252205,3.5905,2541.5,2541.2,3.46344]
[1726808253811,0.3827,2541.5,2541.2,3.46344]
[1726808254006,0.3827,2541.5,2541.2,3.07]
[1726808254704,0.3827,2541.5,2541.2,3.46344]
[1726808255103,0.77611,2541.5,2540.9,6.2778]
[1726808255304,3.98391,2541.5,2541.1,0.39346]
[1726808257312,3.5905,2541.5,2541.1,3.07]
[1726808257611,0.3827,2541.5,2541.2,0.39344]
[1726808258304,0.3827,2541.5,2541.1,3.07]
[1726808259104,0.77611,2541.5,2541.1,3.46346]
[1726808259506,0.39342,2541.4,2541.0,0.39347]
[1726808260002,0.78792,2541.4,2541.0,0.39347]
[1726808260209,0.3945,2541.4,2541.1,0.39346]
[1726808260914,0.3945,2541.4,2541.2,0.39345]
[1726808261120,0.3827,2541.5,2541.3,3.46343]
[1726808261506,0.3827,2541.5,2541.3,3.07]
[1726808261813,0.3827,2541.5,2541.2,0.39344]
[1726808262008,0.3827,2541.5,2541.3,0.52088707]
[1726808262309,0.3827,2541.5,2541.2,0.39344]
[1726808262520,0.3827,2541.5,2541.3,0.5208934]
[1726808262819,0.3827,2541.5,2541.0,3.46347]
[1726808263019,0.77611,2541.5,2541.1,0.91445763]
[1726808263208,0.39342,2541.4,2541.2,0.52099763]
[1726808263418,0.39342,2541.4,2541.0,3.46347]
[1726808263713,3.98391,2541.5,2541.1,0.91454064]
[1726808263914,0.39342,2541.4,2541.1,0.52108064]
[1726808264212,0.39342,2541.4,2541.2,0.5211065]
[1726808264516,3.98392,2541.5,2541.1,0.39346]
[1726808265110,0.77612,2541.5,2541.2,0.52108373]
[1726808265311,3.5905,2541.5,2541.0,3.07]
[1726808265515,3.2078,2541.2,2541.0,0.39348]
[1726808265711,0.39345,2541.3,2540.9,0.39349]
[1726808265912,3.60124,2541.3,2541.0,0.52117326]
[1726808266114,3.60124,2541.3,2540.9,0.39349]
[1726808266321,0.39345,2541.2,2540.9,0.39349]
[1726808266722,0.4053,2541.1,2541.0,3.46348]
[1726808267019,0.4053,2541.1,2541.0,3.9847464]
[1726808268017,3.2078,2541.3,2541.0,3.9847464]
[1726808268210,0.4107,2541.3,2541.1,0.5212664]
[1726808268411,0.4107,2541.3,2541.0,3.46348]
[1726808268616,0.4107,2541.3,2541.1,0.5212234]
[1726808268825,0.4107,2541.3,2541.0,3.46348]
[1726808269009,0.4107,2541.3,2541.1,0.52121611]
[1726808269211,0.4107,2541.3,2541.0,3.07]
[1726808269719,0.4107,2541.3,2541.0,3.46348]
[1726808270016,0.4107,2541.3,2541.1,0.52129365]
[1726808270220,0.4107,2541.3,2541.0,3.46348]
[1726808270418,0.4107,2541.3,2541.1,0.52157745]
[1726808270615,0.4107,2541.3,2541.1,0.39347]
[1726808270915,0.4107,2541.3,2541.0,3.46347]
[1726808271223,0.4107,2541.3,2541.1,0.91508912]
[1726808271414,0.4107,2541.3,2541.1,0.39347]
[1726808271913,0.4107,2541.3,2541.0,3.07]
[1726808272220,0.4107,2541.3,2541.0,3.46348]
[1726808272918,0.4107,2541.3,2541.0,3.07]
[1726808273127,0.39347,2541.1,2540.7,3.87652]
[1726808273420,0.3966,2541.0,2540.8,0.9149436]
[1726808273622,0.3966,2541.0,2540.9,0.5214336]
[1726808273923,0.3966,2541.0,2540.8,0.39351]
[1726808274114,0.3966,2541.0,2540.9,0.52145338]
[1726808274828,0.3966,2541.0,2540.9,0.52143315]
[1726808275115,0.3966,2541.0,2540.9,0.52137543]
[1726808275321,0.3966,2541.0,2540.8,0.39351]
[1726808275518,0.3966,2541.0,2540.7,3.87652]
[1726808275727,0.3966,2541.0,2540.9,0.52139939]
[1726808276223,0.3966,2541.0,2540.9,1.04280884]
[1726808276525,0.4143,2541.2,2540.9,1.04279957]
[1726808276720,0.4143,2541.2,2540.9,0.52139939]
[1726808277423,3.2078,2541.3,2541.0,3.07]
[1726808277622,3.2078,2541.3,2541.2,3.07]
[1726808278818,4.5125,2541.6,2541.2,3.07]
[1726808279014,4.5125,2541.6,2541.3,0.3791]
[1726808279429,4.90589,2541.6,2541.3,0.3791]
[1726808280037,0.78489,2541.6,2541.3,0.3791]
[1726808280235,0.78489,2541.6,2541.2,3.07]
[1726808280437,0.3915,2541.6,2541.3,0.39344]
[1726808280738,0.3915,2541.6,2541.2,3.07]
[1726808280739,0.3915,2541.6,2541.2,3.46344]
[1726808281637,0.3915,2541.6,2541.2,3.07]
[1726808282333,0.3915,2541.6,2541.2,3.46345]
[1726808282534,0.3915,2541.6,2541.2,3.07]
[1726808282735,0.3915,2541.6,2541.2,3.46345]
[1726808284836,0.3915,2541.6,2541.2,3.07]
[1726808285041,0.3915,2541.6,2541.4,3.46341]
[1726808285235,0.3915,2541.6,2541.5,0.4162]
[1726808285935,0.4065,2541.7,2541.5,0.8096]
[1726808286135,0.4065,2541.7,2541.6,3.07]
[1726808286339,0.4065,2541.7,2541.6,3.46339]
[1726808286541,3.2078,2541.8,2541.6,3.46338]
[1726808286731,3.2078,2541.8,2541.6,3.86318]
[1726808287038,3.2078,2541.8,2541.6,3.86319]
[1726808287242,3.2078,2541.8,2541.6,3.07]
[1726808287743,1.20613,2542.0,2541.6,3.07]
[1726808288037,3.2078,2541.9,2541.5,1.2005]
[1726808289136,3.2078,2541.9,2541.6,0.39339]
[1726808289441,3.2078,2541.9,2541.5,1.2005]
[1726808290042,3.2078,2541.9,2541.6,0.39339]
[1726808290441,3.2078,2541.9,2541.5,1.2005]
[1726808291436,1.20613,2542.0,2541.6,3.46338]
[1726808292634,3.2078,2541.9,2541.2,3.07]
[1726808292835,0.39339,2541.6,2541.3,0.39343]
[1726808293036,0.4149,2541.5,2541.3,0.39343]
[1726808293235,0.4149,2541.5,2541.4,3.46342]
[1726808293236,0.3962,2541.5,2541.4,3.46342]
[1726808293537,0.8045,2541.8,2541.4,3.46341]
[1726808293739,1.19786,2541.8,2541.4,3.46341]
[1726808293936,0.3962,2542.1,2541.6,3.07]
[1726808294143,1.20441,2542.1,2541.8,3.07]
[1726808294463,0.8111,2542.1,2541.4,3.447]
[1726808294739,3.60116,2541.9,2541.4,3.46341]
[1726808294934,0.78656,2541.8,2541.3,4.23763]
[1726808295132,0.78656,2541.8,2541.4,0.39342]
[1726808295439,0.80048,2541.7,2541.3,3.8442]
[1726808295633,0.80048,2541.7,2541.3,4.23763]
[1726808295634,0.3998,2541.6,2541.3,4.23763]
[1726808296435,3.6076,2541.6,2541.3,3.8442]
[1726808296641,0.3998,2541.6,2541.3,3.8442]
[1726808296838,0.3998,2541.6,2541.3,4.23763]
[1726808298138,0.3998,2541.6,2541.5,3.07]
[1726808298339,3.2078,2541.7,2541.5,3.07]
[1726808298534,3.2078,2541.7,2541.6,0.39339]
[1726808298733,3.2078,2541.7,2541.5,3.07]
[1726808298935,3.2078,2541.7,2541.5,3.4634]
[1726808299642,3.2078,2541.7,2541.5,3.07]
[1726808299834,3.2078,2541.7,2541.3,3.8442]
[1726808300034,3.2078,2541.7,2541.5,3.07]